bitfinex/quotes_SOLUSD_20240613
["timestamp","ask_amount","ask_price","bid_price","bid_amount"]
[1718287680860,2.6359,150.05,149.94,16.3832]
[1718287680861,0.17,150.05,149.94,16.3832]
[1718287681035,2.4663,150.03,149.95,2.4673]
[1718287681232,6.605,150.02,149.91,12.3402]
[1718287681452,11.7078,150.02,149.92,2.4678]
[1718287681748,11.7078,150.02,149.9,4.9365]
[1718287681749,2.4667,150.0,149.9,4.9365]
[1718287681958,20.17,150.01,149.92,9.8715]
[1718287682141,20.0,150.01,149.95,2.4674]
[1718287682447,20.0,150.01,149.94,12.3379]
[1718287682646,6.605,150.02,149.97,2.467]
[1718287682847,6.605,150.02,149.96,2.4672]
[1718287683830,6.605,150.02,149.8,59.9508126]
[1718287683831,6.605,150.02,149.92,5.1058]
[1718287684032,2.4666,150.01,149.93,0.17]
[1718287684235,2.4666,150.01,149.94,2.4675]
[1718287684449,9.0714,150.02,149.94,2.4675]
[1718287684631,6.605,150.02,149.96,2.4673]
[1718287685362,6.605,150.02,149.95,2.4674]
[1718287685661,9.0713,150.02,149.95,2.4674]
[1718287685857,0.17,150.01,149.91,4.936]
[1718287686075,2.4667,150.0,149.91,4.936]
[1718287686246,5.273,150.01,149.91,2.468]
[1718287686566,2.467,149.98,149.91,2.468]
[1718287686743,2.4669,149.99,149.91,2.468]
[1718287686936,24.8969,149.99,149.92,2.4679]
[1718287687132,22.43,149.99,149.94,2.4675]
[1718287687359,22.43,149.99,149.95,2.4674]
[1718287687563,29.035,150.02,149.95,2.4674]
[1718287687747,20.0,150.01,149.95,2.4674]
[1718287687953,20.0,150.01,149.94,2.4675]
[1718287688155,31.5013,150.02,149.95,2.4674]
[1718287688456,25.42875141,150.04,149.94,5.275]
[1718287688457,20.49675141,150.04,149.94,5.275]
[1718287688770,22.96285141,150.04,149.96,2.4672]
[1718287688941,20.49675141,150.04,149.97,2.467]
[1718287689263,22.96275141,150.04,149.97,2.467]
[1718287689844,20.49675141,150.04,149.97,2.467]
[1718287690059,22.96285141,150.04,149.97,2.467]
[1718287690259,9.0707,150.06,149.96,7.4019]
[1718287690447,20.0,150.05,149.99,2.4667]
[1718287690760,2.466,150.04,149.97,2.637]
[1718287690958,20.0,150.05,149.98,2.4669]
[1718287692346,22.4658,150.05,149.98,2.4669]
[1718287693065,22.4658,150.05,149.97,0.17]
[1718287693244,20.0,150.05,149.98,2.4669]
[1718287693445,2.4658,150.05,149.98,2.4669]
[1718287693652,9.0707,150.06,149.98,2.4669]
[1718287693855,9.0707,150.06,149.99,2.4667]
[1718287694055,6.605,150.06,149.99,0.17]
[1718287694261,4.9304,150.09,149.99,0.34]
[1718287694452,2.4654,150.08,150.01,2.4664]
[1718287695060,2.4654,150.08,150.0,2.4665]
[1718287695250,12.3261,150.09,149.99,2.6367]
[1718287695454,2.4655,150.07,150.0,2.4666]
[1718287696240,0.17,150.09,149.99,5.1035]
[1718287696440,2.4652,150.09,150.0,0.17]
[1718287696669,2.4652,150.09,150.01,2.4664]
[1718287697045,2.4652,150.09,150.02,2.4663]
[1718287697276,2.4653,150.08,150.01,2.4664]
[1718287697646,2.4655,150.07,150.0,2.4665]
[1718287697873,2.4654,150.08,150.0,2.4665]
[1718287698078,12.3284,150.06,149.96,2.4672]
[1718287698367,2.4659,150.05,149.97,2.467]
[1718287698716,4.9314,150.06,149.94,23.7859]
[1718287698847,2.4664,150.02,149.94,8.9803]
[1718287699045,2.4665,150.01,149.94,2.4675]
[1718287699272,2.4664,150.02,149.95,2.4674]
[1718287699645,2.4664,150.02,149.94,2.4675]
[1718287699861,2.4665,150.01,149.94,2.4675]
[1718287700483,9.0714,150.02,149.95,2.4674]
[1718287700692,6.605,150.02,149.95,2.4674]
[1718287700987,6.605,150.02,149.96,2.4673]
[1718287701586,9.0713,150.02,149.95,2.4673]
[1718287701884,9.0714,150.02,149.94,2.4676]
[1718287702085,9.0714,150.02,149.93,2.4677]
[1718287702086,6.605,150.02,149.93,2.4677]
[1718287702386,0.34,150.01,149.93,2.4677]
[1718287702591,2.4671,149.98,149.89,4.9367]
[1718287702893,2.4668,149.99,149.89,12.3421]
[1718287703093,2.4668,149.99,149.92,2.4679]
[1718287703306,20.0,150.0,149.89,12.3421]
[1718287703307,20.0,150.0,149.91,2.468]
[1718287703600,2.6369,149.99,149.92,2.4679]
[1718287703974,2.6369,149.99,149.91,2.468]
[1718287704369,2.6369,149.99,149.92,2.4679]
[1718287705376,2.6369,149.99,149.91,2.468]
[1718287706107,0.17,149.99,149.92,2.4679]
[1718287706894,20.0,150.01,149.92,0.17]
[1718287707104,6.605,150.02,149.96,2.4672]
[1718287707301,6.605,150.02,149.98,2.4669]
[1718287707792,6.605,150.02,149.96,4.9345]
[1718287707793,6.605,150.06,150.0,2.4666]
[1718287708202,6.605,150.06,149.97,12.3355]
[1718287708203,6.605,150.06,149.99,2.4667]
[1718287708371,6.605,150.06,149.97,12.3355]
[1718287708372,9.0708,150.06,149.98,2.4669]
[1718287708568,9.0708,150.06,149.99,2.4668]
[1718287708971,31.4808,150.06,149.99,2.4668]
[1718287709366,29.015,150.06,149.97,7.4014]
[1718287709588,24.8752,150.09,150.01,2.4664]
[1718287709792,24.8752,150.09,149.99,12.5037]
[1718287709998,22.41,150.09,150.0,0.17]
[1718287710189,22.41,150.09,150.03,2.4661]
[1718287710382,22.41,150.09,150.02,2.4662]
[1718287710588,24.8751,150.09,150.02,2.4662]
[1718287711291,22.41,150.09,149.98,5.1038]
[1718287711502,2.4655,150.07,150.0,2.4665]
[1718287711682,2.4654,150.08,150.0,2.4665]
[1718287711880,2.4654,150.08,149.99,0.17]
[1718287711881,2.4654,150.08,150.01,2.4664]
[1718287712095,2.4654,150.08,150.0,2.4665]
[1718287712277,2.4655,150.07,150.0,2.4665]
[1718287712596,2.4653,150.08,150.0,2.4665]
[1718287712990,2.4653,150.08,150.01,2.4664]
[1718287713190,2.4653,150.08,149.99,0.17]
[1718287713191,22.58,150.09,149.99,7.5703]
[1718287713380,25.0452,150.09,150.02,2.4663]
[1718287713899,24.8752,150.09,150.02,2.4663]
[1718287714101,29.56675141,150.1,150.03,2.4661]
[1718287714285,51.97675141,150.1,150.03,2.4661]
[1718287715409,51.97675141,150.1,150.02,2.4662]
[1718287716284,51.97675141,150.1,150.03,2.4661]
[1718287716500,49.51175141,150.1,150.04,2.4659]
[1718287716801,49.51175141,150.1,150.02,0.34]
[1718287717004,49.51175141,150.1,150.04,2.466]
[1718287718504,49.51175141,150.1,150.03,2.466]
[1718287718808,51.97675141,150.1,150.03,2.466]
[1718287719487,49.51175141,150.1,150.04,2.466]
[1718287719905,29.015,150.1,150.04,2.466]
[1718287720111,22.41,150.12,150.06,2.4656]
[1718287720292,24.8747,150.12,150.05,2.4657]
[1718287720610,22.41,150.12,150.06,2.4656]
[1718287720996,22.41,150.12,150.03,12.3306]
[1718287720997,22.41,150.12,150.05,2.4657]
[1718287721220,24.8747,150.12,150.05,2.4657]
[1718287721404,24.8747,150.12,150.05,2.4658]
[1718287722311,22.41,150.12,150.06,2.4656]
[1718287724211,24.8746,150.12,150.05,2.4657]
[1718287725003,2.4646,150.13,150.06,2.4656]
[1718287725804,2.4647,150.12,150.06,2.4656]
[1718287726521,2.4647,150.12,150.05,2.4657]
[1718287728727,2.4647,150.12,150.06,2.4656]
[1718287729226,2.4647,150.12,150.05,2.4657]
[1718287731099,2.4647,150.12,150.06,2.4656]
[1718287732321,2.4645,150.13,150.06,2.4655]
[1718287732621,6.605,150.14,150.08,2.4652]
[1718287732796,6.605,150.14,150.05,0.34]
[1718287733121,6.605,150.14,150.11,2.4647]
[1718287733505,6.605,150.14,150.1,2.4649]
[1718287733722,6.605,150.14,150.11,2.4648]
[1718287734021,6.605,150.14,150.1,2.4649]
[1718287734230,6.605,150.14,150.11,2.4648]
[1718287734924,6.605,150.14,150.06,5.2713]
[1718287734925,9.0694,150.14,150.06,5.2713]
[1718287735098,6.605,150.14,150.09,2.4651]
[1718287735426,6.605,150.14,150.08,2.4652]
[1718287735600,6.605,150.14,150.09,2.4651]
[1718287735996,6.605,150.14,150.07,12.3275]
[1718287736210,6.605,150.14,150.1,2.4649]
[1718287737628,6.605,150.14,150.09,2.465]
[1718287738124,6.605,150.14,150.1,2.465]
[1718287738619,6.605,150.14,150.11,2.4648]
[1718287739302,31.4787,150.18,150.11,2.4648]
[1718287739503,22.4638,150.17,150.11,2.4648]
[1718287739898,29.015,150.18,150.12,2.4645]
[1718287740112,31.4788,150.18,150.12,2.4645]
[1718287740313,31.4788,150.18,150.12,2.4646]
[1718287740515,2.4638,150.17,150.11,2.4647]
[1718287741142,2.464,150.16,150.1,2.4649]
[1718287741323,4.9277,150.17,150.08,5.1006]
[1718287741510,2.4641,150.16,150.1,2.465]
[1718287742245,29.015,150.18,150.11,2.4648]
[1718287742609,2.4639,150.17,150.11,2.4648]
[1718287743416,6.605,150.18,150.1,17.2548]
[1718287743618,6.605,150.18,150.13,2.4644]
[1718287744142,6.605,150.18,150.12,9.8587]
[1718287744450,20.49675141,150.21,150.16,2.4639]
[1718287744615,31.4779,150.23,150.16,2.4639]
[1718287745140,29.015,150.23,150.15,17.249]
[1718287745338,29.015,150.23,150.17,2.4637]
[1718287745339,6.605,150.23,150.17,2.4637]
[1718287745839,6.605,150.23,150.2,2.4633]
[1718287746038,0.8125968,150.25,150.18,4.9273]
[1718287746241,0.8125968,150.25,150.2,2.4632]
[1718287746540,0.8125968,150.25,150.21,2.4631]
[1718287746841,0.8125968,150.25,150.22,2.4629]
[1718287747045,0.8125968,150.25,150.19,4.9269]
[1718287747342,0.8125968,150.25,150.22,2.463]
[1718287748143,0.8125968,150.25,150.21,2.4631]
[1718287748345,0.8125968,150.25,150.2,4.9265]
[1718287748521,0.8125968,150.25,150.22,2.463]
[1718287748726,0.8125968,150.25,150.21,2.4631]
[1718287749137,3.2750968,150.25,150.19,2.4634]
[1718287749342,0.8125968,150.25,150.19,2.4634]
[1718287749643,0.8125968,150.25,150.2,2.4633]
[1718287749849,2.4628,150.24,150.15,4.9282]
[1718287750053,2.4628,150.24,150.17,2.4637]
[1718287750345,2.4629,150.23,150.16,2.4639]
[1718287750748,22.41,150.23,150.12,4.9292]
[1718287751046,22.41,150.23,150.14,2.4642]
[1718287751047,2.4632,150.21,150.14,2.4642]
[1718287751458,22.41,150.23,150.16,2.4639]
[1718287751620,24.8729,150.23,150.16,2.4639]
[1718287752016,24.8729,150.23,150.13,12.3224]
[1718287752017,22.41,150.23,150.14,7.3929]
[1718287752239,22.41,150.23,150.18,2.4636]
[1718287752456,22.41,150.23,150.15,0.17]
[1718287752634,0.8125968,150.25,150.21,2.4631]
[1718287753049,0.8125968,150.25,150.19,2.4634]
[1718287753554,25.6850968,150.25,150.18,2.4636]
[1718287754129,25.6850968,150.25,150.15,12.6606]
[1718287754130,23.2225968,150.25,150.19,2.4634]
[1718287754341,3.2750968,150.25,150.18,2.4636]
[1718287754949,0.8125968,150.25,150.21,2.463]
[1718287755169,0.8125968,150.25,150.19,5.097]
[1718287755382,0.8125968,150.25,150.21,2.4631]
[1718287755572,0.8125968,150.25,150.2,2.4633]
[1718287756267,0.8125968,150.25,150.19,9.8541]
[1718287756472,0.8125968,150.25,150.22,2.4629]
[1718287757274,0.8125968,150.25,150.21,2.4631]
[1718287757443,0.8125968,150.25,150.22,2.463]
[1718287757642,0.8125968,150.25,150.21,2.4631]
[1718287757846,0.8125968,150.25,150.19,2.4634]
[1718287758042,0.8125968,150.25,150.18,4.9273]
[1718287758263,0.8125968,150.25,150.2,2.4633]
[1718287758677,0.8125968,150.25,150.19,2.4634]
[1718287759067,25.6851968,150.25,150.18,2.4636]
[1718287759481,2.4631,150.22,150.12,17.2518]
[1718287759773,24.873,150.22,150.15,2.4641]
[1718287760480,22.41,150.22,150.16,2.4639]
[1718287760659,2.4636,150.19,150.12,2.4645]
[1718287760863,2.4637,150.18,150.11,2.4647]
[1718287761066,24.8736,150.19,150.12,2.4646]
[1718287761279,0.17,150.2,150.1,12.3249]
[1718287761876,0.17,150.2,150.07,6.5128]
[1718287761877,20.0,150.2,150.12,4.9292]
[1718287762066,29.0682,150.21,150.14,2.4642]
[1718287762676,26.605,150.21,150.15,2.4641]
[1718287762876,6.605,150.21,150.15,2.4641]
[1718287763579,9.0682,150.21,150.14,2.4642]
[1718287763755,9.0682,150.21,150.13,2.4645]
[1718287763756,2.4634,150.2,150.13,2.4645]
[1718287763957,2.4635,150.19,150.12,2.4646]
[1718287764273,6.605,150.21,150.1,17.2544]
[1718287764476,2.4634,150.2,150.13,2.4644]
[1718287764884,0.17,150.2,150.1,17.2544]
[1718287765069,0.17,150.19,150.13,2.4645]
[1718287765272,2.4633,150.2,150.13,2.4644]
[1718287765577,6.605,150.21,150.12,2.4646]
[1718287765578,2.4636,150.19,150.12,2.4646]
[1718287765781,6.945,150.21,150.13,2.4645]
[1718287765782,2.6334,150.2,150.13,2.4645]
[1718287765963,0.17,150.19,150.11,4.9297]
[1718287766158,9.2383,150.21,150.14,2.4643]
[1718287766384,0.17,150.2,150.14,2.4643]
[1718287766758,2.6334,150.2,150.13,2.4644]
[1718287767471,6.605,150.21,150.14,2.4642]
[1718287767665,9.0683,150.21,150.14,2.4642]
[1718287767864,2.4634,150.2,150.13,2.4644]
[1718287768073,11.5315,150.21,150.12,2.4646]
[1718287768264,2.4637,150.18,150.11,2.4647]
[1718287769257,2.4636,150.19,150.12,2.4646]
[1718287769461,22.6334,150.2,150.13,2.4645]
[1718287769686,20.0,150.2,150.14,2.4643]
[1718287769875,9.0682,150.21,150.14,2.4643]
[1718287771669,9.0682,150.21,150.14,2.4642]
[1718287772074,2.4635,150.19,150.1,12.3244]
[1718287772283,2.4635,150.19,150.11,0.17]
[1718287772486,2.4635,150.19,150.12,2.4645]
[1718287772894,2.4635,150.19,150.13,2.4645]
[1718287773394,2.4634,150.2,150.13,2.4645]
[1718287774884,2.4634,150.2,150.12,2.4646]
[1718287774885,2.4637,150.18,150.12,2.4646]
[1718287775089,2.6336,150.19,150.12,2.4646]
[1718287775593,2.6336,150.19,150.13,2.4645]
[1718287776089,2.6336,150.19,150.12,2.4645]
[1718287776395,2.6336,150.19,150.13,2.4645]
[1718287777077,2.6336,150.19,150.12,2.4646]
[1718287778388,2.6336,150.19,150.13,2.4645]
[1718287778603,9.0682,150.21,150.14,2.4642]
[1718287779088,9.0682,150.21,150.11,9.8592]
[1718287779089,2.4635,150.19,150.13,2.4644]
[1718287779287,6.605,150.21,150.09,0.34]
[1718287779494,6.605,150.21,150.15,2.4641]
[1718287779699,9.0682,150.21,150.15,2.4641]
[1718287779876,2.4635,150.2,150.13,2.4644]
[1718287780192,9.0683,150.21,150.14,2.4643]
[1718287780801,2.4634,150.2,150.14,2.4643]
[1718287781304,2.4634,150.2,150.12,4.9293]
[1718287781796,2.4634,150.2,150.13,2.4644]
[1718287782980,2.4634,150.2,150.14,2.4643]
[1718287783874,9.0683,150.21,150.14,2.4643]
[1718287784885,8.52,150.18,150.14,2.4643]
[1718287785475,6.605,150.21,150.13,7.3935]
[1718287785775,8.52,150.19,150.16,2.4639]
[1718287786581,8.52,150.19,150.15,2.464]
[1718287786799,6.605,150.21,150.16,2.464]
[1718287786976,8.52,150.19,150.16,2.464]
[1718287791302,6.605,150.21,150.16,2.464]
[1718287791612,8.52,150.19,150.16,2.464]
[1718287792097,8.52,150.19,150.17,2.4638]
[1718287792486,2.4629,150.23,150.17,2.4638]
[1718287792701,8.52,150.2,150.17,2.4638]
[1718287793002,8.52,150.2,150.16,2.4639]
[1718287793412,8.52,150.2,150.17,2.4638]
[1718287794405,8.52,150.2,150.16,2.4639]
[1718287794609,8.52,150.2,150.17,2.4638]
[1718287794823,8.52,150.2,150.15,15.9125]
[1718287794981,7.4175968,150.25,150.17,18.3753]
[1718287795184,8.52,150.24,150.2,2.4633]
[1718287795487,8.52,150.23,150.19,2.4634]
[1718287796589,9.8800968,150.25,150.18,0.17]
[1718287796590,7.4175968,150.25,150.18,0.17]
[1718287796787,8.52,150.23,150.19,2.4634]
[1718287797486,7.4175968,150.25,150.18,2.4637]
[1718287797487,8.52,150.22,150.18,2.4637]
[1718287797690,8.52,150.21,150.16,0.34]
[1718287798014,8.52,150.21,150.17,2.4637]
[1718287798319,2.4631,150.22,150.16,2.4639]
[1718287798527,8.52,150.2,150.16,2.4639]
[1718287798893,8.52,150.18,150.15,2.4641]
[1718287799502,8.52,150.18,150.16,2.464]
[1718287799818,2.4631,150.22,150.16,2.464]
[1718287799988,8.52,150.18,150.16,2.464]
[1718287800184,8.52,150.18,150.15,2.464]
[1718287800514,56.2448,150.24,150.14,4.9287]
[1718287800515,8.52,150.17,150.14,2.4643]
[1718287800811,2.4634,150.2,150.08,72.11493645]
[1718287800812,8.52,150.16,150.09,22.1857]
[1718287801006,2.4636,150.19,150.12,2.4646]
[1718287801221,8.52,150.15,150.12,2.4646]
[1718287801384,6.605,150.18,150.06,6.5128]
[1718287801587,8.52,150.14,150.11,2.4647]
[1718287801902,8.52,150.14,150.12,2.4646]
[1718287802304,6.605,150.18,150.12,2.4646]
[1718287802619,8.52,150.14,150.12,2.4646]
[1718287802821,8.52,150.14,150.11,2.4647]
[1718287803192,6.605,150.18,150.12,2.4645]
[1718287803391,8.52,150.14,150.12,2.4645]
[1718287803618,8.52,150.14,150.13,2.4645]
[1718287803819,8.52,150.15,150.13,2.4645]
[1718287804199,8.52,150.15,150.12,2.4645]
[1718287804704,23.0491,150.18,150.12,2.4645]
[1718287804902,23.0491,150.18,150.15,2.4641]
[1718287805229,8.52,150.18,150.15,2.4641]
[1718287805811,8.52,150.17,150.15,2.4641]
[1718287806015,8.52,150.17,150.14,2.4642]
[1718287806217,8.52,150.17,150.13,2.4644]
[1718287806598,8.52,150.16,150.13,2.4644]
[1718287807135,8.52,150.14,150.1,2.4649]
[1718287807296,8.52,150.13,150.11,2.4648]
[1718287807619,8.52,150.13,150.07,71.5543839]
[1718287807620,8.52,150.13,150.07,30.7088]
[1718287807794,8.52,150.13,150.09,2.4651]
[1718287808115,8.52,150.12,150.1,2.4649]
[1718287808843,2.4639,150.17,150.11,2.4648]
[1718287810026,2.4639,150.17,150.1,2.4649]
[1718287810236,2.464,150.16,150.1,2.4649]
[1718287811407,2.6339,150.17,150.1,2.4649]
[1718287811614,28.3737,150.18,150.09,12.3256]
[1718287812012,28.3737,150.18,150.11,2.4647]
[1718287812209,25.91,150.18,150.11,2.4647]
[1718287812412,2.4647,150.12,150.05,2.4657]
[1718287812629,2.4645,150.13,150.06,2.4655]
[1718287812939,36.7156,150.15,150.05,2.4657]
[1718287812940,2.4647,150.12,150.05,2.4657]
[1718287813236,2.6347,150.12,150.05,2.4657]
[1718287816039,50.8387,150.14,150.06,2.4656]
[1718287816245,50.8387,150.14,150.07,2.4655]
[1718287816246,48.0344,150.14,150.07,2.4655]
[1718287819161,25.57,150.14,150.03,0.17]
[1718287819363,6.217,150.15,150.1,2.4648]
[1718287819562,6.217,150.15,150.08,7.396]
[1718287819864,6.217,150.15,150.07,12.3273]
[1718287820069,8.6812,150.15,150.08,2.4652]
[1718287820467,8.6812,150.15,150.07,2.4654]
[1718287820468,6.217,150.15,150.07,2.4654]
[1718287820672,2.4644,150.14,150.07,2.4654]
[1718287820869,2.4644,150.14,150.04,2.4659]
[1718287820870,2.4648,150.11,150.04,2.4659]
[1718287821067,2.4647,150.12,150.05,2.4657]
[1718287821269,2.4648,150.11,150.04,2.4659]
[1718287821574,2.4648,150.11,150.05,2.4658]
[1718287821779,2.465,150.1,150.02,27.5806]
[1718287821975,2.465,150.1,150.04,2.4659]
[1718287822190,2.4649,150.11,150.02,34.9795]
[1718287822701,2.4652,150.09,150.02,2.4662]
[1718287822871,6.6117,150.09,149.98,21.5259]
[1718287823192,2.4654,150.08,150.01,2.4663]
[1718287823487,2.4654,150.08,149.98,28.9267]
[1718287823488,2.4656,150.07,150.0,2.4666]
[1718287823899,2.4656,150.06,150.0,2.4666]
[1718287824276,2.4656,150.07,150.0,2.4666]
[1718287824485,2.6354,150.08,150.01,2.4664]
[1718287824994,0.17,150.06,149.94,141.74770722]
[1718287825200,2.4663,150.03,149.96,2.4671]
[1718287825582,2.4663,150.02,149.95,2.4674]
[1718287825805,2.4662,150.03,149.95,2.4674]
[1718287826007,15.0034,150.04,149.94,22.8164]
[1718287826165,15.0034,150.04,149.96,12.3364]
[1718287826371,15.0034,150.04,149.99,2.4668]
[1718287826784,15.0034,150.04,149.98,2.4669]
[1718287827407,15.0034,150.04,149.99,2.4668]
[1718287827771,15.0034,150.04,149.97,52.4014]
[1718287827972,16.5486,150.08,150.03,2.4661]
[1718287828587,16.5486,150.08,149.98,5.1038]
[1718287828802,2.6356,150.07,150.0,2.4665]
[1718287829780,2.6356,150.07,150.01,2.4664]
[1718287829992,0.17,150.07,150.01,2.4664]
[1718287830576,2.6355,150.07,150.01,2.4664]
[1718287831204,0.17,150.07,150.01,2.4664]
[1718287831708,16.5486,150.08,150.02,2.4663]
[1718287832007,16.5486,150.08,150.03,2.4661]
[1718287833403,16.5486,150.08,150.04,2.4659]
[1718287833897,16.5486,150.08,150.05,2.4658]
[1718287834099,22.92,150.13,150.05,17.2607]
[1718287834299,2.465,150.1,150.06,45.0]
[1718287834510,22.92,150.13,150.02,45.0]
[1718287834511,122.92,150.13,150.02,45.0]
[1718287834804,4.9303,150.09,150.02,45.0]
[1718287835178,2.4654,150.08,150.02,47.4663]
[1718287835596,0.17,150.09,150.02,45.0]
[1718287835777,0.51,150.09,150.02,45.0]
[1718287836180,2.4654,150.08,150.02,47.4663]
[1718287836381,2.6352,150.09,150.03,2.466]
[1718287836680,2.4652,150.09,150.03,2.466]
[1718287837102,2.4652,150.09,150.02,47.4662]
[1718287837290,2.4652,150.09,150.02,2.4662]
[1718287837487,2.4652,150.09,150.03,2.4661]
[1718287838305,20.0,150.1,150.03,4.9322]
[1718287838605,2.4651,150.09,150.04,45.0]
[1718287838781,2.4651,150.1,150.04,45.0]
[1718287838981,2.4651,150.1,150.04,47.466]
[1718287839182,2.4652,150.09,150.04,45.0]
[1718287839406,2.4652,150.09,150.02,2.4662]
[1718287839709,2.4652,150.09,150.03,2.4661]
[1718287839900,2.4652,150.09,150.03,45.0]
[1718287840290,2.4653,150.08,150.02,47.4662]
[1718287840612,2.4653,150.08,150.03,45.0]
[1718287840783,2.4652,150.09,150.03,2.4661]
[1718287840981,2.4652,150.09,150.02,2.4662]
[1718287841612,2.4652,150.09,150.03,2.4661]
[1718287842126,28.0349,150.11,150.04,2.4659]
[1718287842288,28.0349,150.11,150.05,2.4658]
[1718287842616,2.4652,150.09,150.03,47.466]
[1718287842814,2.4652,150.09,150.03,2.466]
[1718287843112,2.4652,150.09,150.02,47.4662]
[1718287843314,0.17,150.1,150.01,45.0]
[1718287843505,2.4656,150.07,150.01,47.4664]
[1718287843813,28.0752,150.1,150.01,45.0]
[1718287843814,20.17,150.1,150.01,45.0]
[1718287843979,28.0349,150.11,150.05,2.4657]
[1718287844182,262.8747,150.12,150.04,45.0]
[1718287844399,0.17,150.11,150.06,2.4656]
[1718287845006,0.17,150.11,150.05,2.4657]
[1718287845393,0.17,150.11,150.06,2.4656]
[1718287845577,0.17,150.11,150.05,2.4657]
[1718287845783,33.3046,150.11,150.0,14.9695]
[1718287846027,2.4652,150.09,150.03,2.4661]
[1718287846186,2.4652,150.09,150.02,2.4662]
[1718287846381,2.4656,150.07,150.01,2.4664]
[1718287846913,2.4656,150.07,150.0,2.4665]
[1718287847108,2.4656,150.07,150.01,2.4664]
[1718287847295,2.6351,150.1,150.0,9.8662]
[1718287847613,2.6351,150.1,150.03,2.466]
[1718287847614,22.6351,150.1,150.03,2.466]
[1718287848207,2.4651,150.09,150.03,2.466]
[1718287848396,0.51,150.08,150.01,2.4664]
[1718287848607,2.4659,150.05,149.97,20.2201]
[1718287848789,2.466,150.04,149.97,2.467]
[1718287848990,0.17,150.04,149.96,12.3363]
[1718287849299,28.0359,150.05,149.99,2.4667]
[1718287849630,28.0359,150.05,149.98,2.4669]
[1718287849800,28.0359,150.05,149.99,2.4668]
[1718287850301,2.4665,150.01,149.94,2.4675]
[1718287851316,16.4173,150.01,149.92,4.9358]
[1718287851509,16.4173,150.01,149.95,2.4674]
[1718287852103,2.4666,150.0,149.91,4.936]
[1718287852417,2.467,149.98,149.91,2.468]
[1718287852647,25.74,149.99,149.9,2.4682]
[1718287852648,2.4672,149.97,149.9,2.4682]
[1718287852821,0.17,149.97,149.91,2.4681]
[1718287853019,0.17,149.97,149.88,4.937]
[1718287853020,6.1684,149.93,149.84,4.9384]
[1718287853226,6.1684,149.93,149.86,2.4688]
[1718287853397,8.6363,149.93,149.85,2.469]
[1718287853597,6.1684,149.93,149.81,81.12857042]
[1718287853804,31.7384,149.93,149.86,2.4688]
[1718287854114,15.7205,149.94,149.86,4.9379]
[1718287854314,15.7205,149.94,149.87,4.9375]
[1718287854616,15.7205,149.94,149.89,2.4684]
[1718287854801,15.7205,149.94,149.85,4.9381]
[1718287855008,15.7205,149.94,149.86,45.17]
[1718287855398,15.7205,149.94,149.86,50.1076]
[1718287855601,15.7205,149.94,149.89,2.4683]
[1718287856101,15.7205,149.94,149.87,2.4687]
[1718287856314,15.7205,149.94,149.84,5.4485]
[1718287856315,15.7205,149.94,149.88,2.4686]
[1718287856525,15.7205,149.94,149.87,2.4687]